Cogmind - Beta 15 @@@ ROGUE MODE // 2025.06.24 @ 22:23:28 Player: clapo Result: Destroyed by G-47 Trooper with Particle Gun Performance ------------- Evolutions (0) 0 Regions Visited (2) 400 Robots Destroyed (26) 130 Value Destroyed (536) 536 Prototype IDs (0) 0 Alien Tech Used (0) 0 Bonus (0) 0 TOTAL SCORE: 1066 Bonus ------- None Cogmind --------- Core Integrity 0/250 Matter 176/300 Energy 100/100 System Corruption 0% Temperature Cool (9) Movement Core (200) Ox3 Location -10/Mines Parts ------- > --- POWER (1) -------- (None) > --- PROPULSION (2) --- (None) > --- UTILITY (2) ------ Medium Storage Unit > --- WEAPON (2) ------- (None) > --- INVENTORY (10) --- Improved Ion Engine Flight Unit Heat Sink Structural Scanner Visual Processing Unit Peak State ------------ > --- POWER ------------ Light Ion Engine > --- PROPULSION ------- Aluminum Leg Aluminum Leg > --- UTILITY ---------- Heat Sink Seismic Detector > --- WEAPON ----------- EM Pulse Gun Assault Rifle > --- INVENTORY -------- Light Ion Engine Wheel Wheel [Rating: 7] Favorites ----------- Power Light Ion Engine Engine Light Ion Engine Propulsion Aluminum Leg Leg Aluminum Leg Wheel Wheel Flight Unit Flight Unit Utility Seismic Detector Device Seismic Detector Storage Medium Storage Unit Weapon Assault Rifle Energy Gun EM Pulse Gun Ballistic Gun Assault Rifle Launcher Grenade Launcher Build | -11 -10 -10 ------- Run | Yrd Mat Min Slots Evolved . | . . . Power . | . . . Propulsion . | . . . Utility . | . . . Weapon . | . . . Parts Attached 16 | 8 3 5 Power 3 | 1 . 2 Engine 3 | 1 . 2 Core . | . . . Reactor . | . . . Propulsion 5 | 2 1 2 Treads . | . . . Leg 3 | 2 1 . Wheel 1 | . . 1 Hover . | . . . Flight 1 | . . 1 Utility 5 | 3 2 . Device 2 | 2 . . Storage 3 | 1 2 . Processor . | . . . Hackware . | . . . Protection . | . . . Artifact . | . . . Weapon 3 | 2 . 1 Energy Gun 1 | 1 . . Energy Cannon . | . . . Ballistic Gun 1 | 1 . . Ballistic Cannon . | . . . Launcher 1 | . . 1 Special Weapon . | . . . Impact Weapon . | . . . Slashing Weapon . | . . . Piercing Weapon . | . . . Special Melee Weapon . | . . . Unidentified Prototypes . | . . . Parts Lost 9 | . 1 8 Power 1 | . 1 . Propulsion 4 | . . 4 Utility 1 | . . 1 Weapon 3 | . . 3 Highest Loss Streak 3 | . 1 3 To Critical Strikes . | . . . Average Backups 4 | 2 5 5 Power 1 | 1 1 . Propulsion 1 | 1 1 1 Utility 1 | . 1 2 Weapon . | . . . Tool/Special . | . . . Unused Backups 6 | 1 2 3 Power 2 | . 1 1 Propulsion 2 | 1 1 . Utility 2 | . . 2 Weapon . | . . . Tool/Special . | . . . Average Slot Usage (%) 84 | . 94 75 Engine 8 | . 9 7 Leg 19 | . 28 12 Wheel 1 | . . 3 Device 13 | . 14 13 Storage 13 | . 13 13 Energy Gun 7 | . 14 1 Ballistic Gun 12 | . 14 10 Launcher 5 | . . 10 Peak Build Rating 7 | 7 7 7 Average Rating 5 | 4 6 5 On Entrance 4 | . 7 6 Naked Turns 1 | . . 1 Heaviest Build 19 | 10 18 19 Greatest Support 20 | 20 20 20 Greatest Overweight (x) 6 | . . 6 Average Overweight (x) . | . . . Largest Inventory Capacity 15 | 5 15 10 Average Capacity 8 | 5 9 9 Most Carried 7 | 5 6 7 Average Carried 4 | 3 5 5 Final Capacity 10 | 5 10 10 Final Carried 6 | 5 6 5 Class Distribution -------------------- 100% | Mutant Dominant Class ---------------- Mutant | -10/Materials Mutant | -10/Mines Resources | -11 -10 -10 ----------- Run | Yrd Mat Min Matter Collected 540 | 337 85 118 Remotely . | . . . Salvage Created 771 | 166 257 348 Parts 53 | 14 15 24 Haulers Intercepted . | . . . Recyclers Shooed 2 | . . 2 Parts Field Recycled . | . . . Retrieved Matter . | . . . Parts Self-Destructed . | . . . Prevented . | . . . Kills | -11 -10 -10 ------- Run | Yrd Mat Min Combat Hostiles Destroyed 14 | 1 5 8 Guns 8 | 1 5 2 AOE 6 | . . 6 Classes Destroyed 8 | 3 1 4 Worker 2 | 1 1 . Builder 2 | . . 2 Tunneler 4 | 4 . . Recycler 3 | . . 3 Watcher 1 | . 1 . Swarmer 3 | . . 3 Grunt 9 | 1 5 3 Sentry 2 | . . 2 Best Kill Streak 6 | 2 5 6 Combat Bots Only 4 | 1 4 3 Max Kills in Single Turn 2 | 1 1 2 Gunslinging . | . . . Exploded 2 | . . 2 Melee . | . . . Uniques/NPCs Destroyed . | . . . Combat | -11 -10 -10 -------- Run | Yrd Mat Min Hostile Shots Fired 91 | 6 25 60 Missed 25 | 2 5 18 Hits 66 | 4 20 42 Projectile 66 | 4 20 42 Critical Strikes 1 | . 1 . Damage Taken 970 | 43 258 669 Core 251 | . 76 175 Absorbed by Shields . | . . . Core Remaining (%) 100 | 100 . . Volleys Fired 53 | 17 20 16 Largest 2 | 2 2 2 Hottest 60 | 60 60 50 Shots Fired 102 | 34 40 28 Gun 88 | 34 40 14 Cannon . | . . . Launcher 14 | . . 14 Special . | . . . Kinetic 51 | 17 20 14 Thermal . | . . . Explosive 14 | . . 14 Electromagnetic 37 | 17 20 . Robot Hit Streak 9 | 4 6 9 Robot Miss Streak 3 | 3 3 2 Penetration Max . | . . . Secondary Targets 1 | . 1 . Max Gunslinging Chain 1 | . 1 . Shots Hit Robots 64 | 20 29 15 Core Hits 40 | 7 13 20 Critical Kills . | . . . Critical Parts Destroyed . | . . . Critical Strikes . | . . . Melee Attacks . | . . . Impact . | . . . Slashing . | . . . Piercing . | . . . Sneak Attacks . | . . . Combat Hostiles . | . . . Follow-up Attacks . | . . . Damage Inflicted 1467 | 294 379 794 Guns 750 | 272 379 99 Cannons . | . . . Explosions 717 | 22 . 695 Melee . | . . . Ramming . | . . . Kinetic 417 | 153 165 99 Thermal 22 | 22 . . Explosive 695 | . . 695 Electromagnetic 333 | 119 214 . Impact . | . . . Slashing . | . . . Piercing . | . . . Highest Corruption . | . . . Average Corruption . | . . . Corruption Purged . | . . . Corruption Blocked . | . . . Overload Shots . | . . . Overflow Damage 38 | . . 38 Projectiles . | . . . Explosions 38 | . . 38 Melee . | . . . Knockbacks . | . . . Impact . | . . . Kinetic . | . . . Secondary . | . . . Self-Inflicted Damage 111 | . . 111 Shots 4 | . . 4 Rammed . | . . . Targets Rammed . | . . . Kicked . | . . . Crushed . | . . . Highest Temperature 108 | 1 108 12 Average Temperature 40 | 1 49 5 Received Heat Transfer 420 | 24 162 234 Siege Activations . | . . . Martial Activations . | . . . Shielding Activations . | . . . Robots Disrupted . | . . . Combat Hostiles . | . . . Robots Corrupted . | . . . Combat Hostiles . | . . . Parts Fried 1 | . 1 . Impact Corruptions . | . . . Robots Melted . | . . . Combat Hostiles . | . . . Parts Melted . | . . . Heat Transferred 50 | 50 . . Parts Sabotaged . | . . . Parts Stolen . | . . . Parts Stripped . | . . . Power Chain Reactions 1 | 1 . . Alert | -11 -10 -10 ------- Run | Yrd Mat Min Maximum Alert Level . | . . . Low Security (%) 100 | 100 100 100 Level 1 . | . . . Level 2 . | . . . Level 3 . | . . . Level 4 . | . . . Level 5 . | . . . High Security . | . . . Max Security . | . . . Peak Influence 160 | 25 95 160 Initial 10 | . . 10 Average 29 | 1 25 59 Influence Increases 529 | 45 177 307 Destroy 0b10 Robot/C 280 | 20 100 160 Destroy 0b10 Robot/NC 60 | 25 10 25 Destroy Leader 42 | . 22 20 Disable Machine 15 | . . 15 Destroy Structure 57 | . . 57 Lose Combat Pursuer 75 | . 45 30 Influence Decreases 529 | 45 149 335 Entered New Map 18 | . . 18 Time Decay 450 | 45 139 266 Lost Part 61 | . 10 51 Squads Dispatched 2 | . 2 . Investigation 1 | . 1 . Extermination . | . . . Reinforcement 1 | . 1 . Assault . | . . . Garrison . | . . . Intercept . | . . . Searches Triggered . | . . . Construction Impeded . | . . . Haulers Reinforced . | . . . Active Scanning Responses . | . . . Cargo Convoy Interrupts . | . . . Stealth | -11 -10 -10 --------- Run | Yrd Mat Min Distress Signals 1 | . 1 . Communications Jammed . | . . . Distress Signals . | . . . Times Spotted 23 | 1 10 12 Peak Tracking Total 6 | 1 6 3 Tactical Retreats 3 | . 2 1 Traps | -11 -10 -10 ------- Run | Yrd Mat Min Traps Triggered . | . . . Indirectly . | . . . Trap Hack Attempts . | . . . Triggered . | . . . Disarmed . | . . . Reprogrammed . | . . . Reused . | . . . Traps Extracted . | . . . Installed . | . . . Triggered . | . . . Machines | -11 -10 -10 ---------- Run | Yrd Mat Min Machines Disabled 1 | . . 1 Max in Single Turn 1 | . . 1 Machines Repaired . | . . . Machines Dismantled . | . . . Machines Sabotaged . | . . . Overloaded Fab Kills . | . . . Hacking | -11 -10 -10 --------- Run | Yrd Mat Min Machines Accessed 2 | . 2 . Terminals 1 | . 1 . Fabricators . | . . . Repair Stations 1 | . 1 . Recycling Units . | . . . Scanalyzers . | . . . Garrison Access . | . . . Total Hacks 4 | . 4 . Successful 2 | . 2 . Failed 2 | . 2 . Catastrophic 1 | . 1 . Database Lockouts . | . . . Manual . | . . . Terminals 3 | . 3 . Fabricators . | . . . Repair Stations 1 | . 1 . Recycling Units . | . . . Scanalyzers . | . . . Garrison Access . | . . . Terminal Hacks 2 | . 2 . Record 1 | . 1 . Alert Level 1 | . 1 . Fabricator Hacks . | . . . Repair Station Hacks . | . . . Recycling Unit Hacks . | . . . Scanalyzer . | . . . Garrison Access Hacks . | . . . Unauthorized Hacks . | . . . Terminals . | . . . Fabricators . | . . . Repair Stations . | . . . Recycling Units . | . . . Scanalyzers . | . . . Garrison Access . | . . . Data Cores Recovered . | . . . Used . | . . . Hacking Detections 2 | . 2 . Full Trace Events 1 | . 1 . Feedback Events . | . . . Feedback Blocked . | . . . Robot Schematics Acquired . | . . . Robots Built . | . . . Authchips . | . . . Time . | . . . Total Robot Build Rating . | . . . Part Schematics Acquired . | . . . Parts Built . | . . . Authchips . | . . . Time . | . . . Total Part Build Rating . | . . . Parts Repaired . | . . . Time . | . . . Parts Recycled . | . . . Recycled Matter . | . . . Retrieved Matter . | . . . Retrieved Components . | . . . Parts Scanalyzed . | . . . Part Schematics Acquired . | . . . Parts Damaged . | . . . Bothacking | -11 -10 -10 ------------ Run | Yrd Mat Min Used RIF Installer . | . . . Robots Hacked . | . . . Non-combat . | . . . Combat . | . . . Robot Hacks Applied . | . . . Relay Couplers Released . | . . . Fabnet Peak Effective % . | . . . Robots Rewired . | . . . Allies Hacked . | . . . Hacks Repelled . | . . . Allies | -11 -10 -10 -------- Run | Yrd Mat Min Total Allies . | . . . Largest Group . | . . . Highest-Rated Group . | . . . Highest-Rated Ally . | . . . Total Orders . | . . . Ally Attacks . | . . . Total Damage . | . . . Kills . | . . . Allies Corrupted . | . . . Allies Melted . | . . . Intel | -11 -10 -10 ------- Run | Yrd Mat Min Active Infowar (turns) 1469 | 277 574 618 Seismic 1469 | 277 574 618 Robot Analysis Total . | . . . Derelict Logs Recovered 2 | . . 2 Drone Launches . | . . . Drone Recoveries . | . . . Exploration | -11 -10 -10 ------------- Run | Yrd Mat Min Turns Passed 1812 | 596 574 642 Spaces Moved 1343 | 604 321 418 Core 296 | 292 . 4 Treads . | . . . Legs 884 | 312 321 251 Wheels 163 | . . 163 Hover . | . . . Flight . | . . . Fastest Speed 50 | 50 120 50 Average Speed 110 | 86 120 138 Slowest Speed 350 | 120 120 350 Overloaded Moves . | . . . Propulsion Burnouts . | . . . Robots Hopped . | . . . Potential Cave-ins . | . . . Cave-ins Triggered . | . . . Exploration Rate (%) 35 | 11 26 69 Regions Visited 2 Branch Regions 1 Pre-discovered Areas . | . . . Known Exits Taken . | . . . Unknown Exits Taken 2 | 1 1 . Scrap Searched 1 | . . 1 Spaces Dug . | . . . Terrain Destroyed 89 | 5 . 84 Melee . | . . . Projectile . | . . . AOE 89 | 5 . 84 Terrain Rammed . | . . . Walls Destroyed . | . . . Machines Disabled . | . . . Actions | -11 -10 -10 --------- Run | Yrd Mat Min Total 1563 | 642 470 451 Wait 132 | 7 121 4 Move 1341 | 603 320 418 Hop . | . . . Pick Up 10 | 6 2 2 Fast Attach 14 | 7 2 5 Attach 3 | . . 3 Detach 1 | . . 1 Swap 3 | 1 1 1 Drop 6 | 1 4 1 Fire 53 | 17 20 16 Melee . | . . . Ram . | . . . Kick . | . . . Crush . | . . . Escape Stasis . | . . . Rewire . | . . . Trap . | . . . Miscellaneous . | . . . Route ------- -11/Scrapyard -10/Materials -10/Mines History --------- Turn | Location | Event 2 | -11/Scrapyard | Met Revision 17 257 | -11/Scrapyard | Discovered new exit (range 8) 597 | -11/Scrapyard | Entered Materials 598 | -10/Materials | Build established: Mutant 1097 | -10/Materials | Discovered new exit (range 14) 1171 | -10/Materials | Entered Mines 1286 | -10/Mines | Core integrity fell below 50% 1329 | -10/Mines | Lost 3 parts (2n1w) 1538 | -10/Mines | Learned Materials trap positions 1616 | -10/Mines | Learned Materials stockpile data 1648 | -10/Mines | Core integrity fell below 20% 1653 | -10/Mines | Released all parts (4) 1813 | -10/Mines | Destroyed by G-47 Trooper with Particle Gun Last Messages --------------- 01654_ Acquired Wheel. 01655_ The unstable cave ceiling collapses. 01655_ Particle Gun crushed. 01656_ K-01 Serf collects debris. 01656_ Acquired Grenade Launcher. 01659_ The unstable cave ceiling collapses. 01662_ K-01 Serf collects debris. 01663_ Acquired Med. Storage Unit. 01666_ K-01 Serf collects debris. 01666_ Acquired Seismic Detector. 01670_ K-01 Serf collects debris. 01673_ Acquired 34 matter. 01673_ K-01 Serf collects debris. 01678_ The unstable cave ceiling collapses. 01682_ K-01 Serf collects debris. 01686_ The unstable cave ceiling collapses. 01700_ K-01 Serf collects debris. 01798_ Grenade Launcher destroyed. 01802_ Seismic Detector destroyed. 01811_ Wheel destroyed. Map ----- +----------------------------------------------------+ | ????????????????????????????????????? | | ????????????????????????????????????? | | ????????????????????????????????????? | | ????????????????????????????????????? | | ????????????????????????????????????? | | ????????????????????????????????????? | | ????????????????????????????????????? | | ????????????????????????????????????? | | #???????????????????????????????????? | | ###?????????????????????????????????? | | ########?????????####?????????????? | | #????????## ##????????????? | | #??#?????# #????????????? | | ### #? #?????# ##???????????? | | ####### ## #?????# #???????????? | | #???# # #??????# #???????????? | | ????### ####?###### ##??????????? | | ????## ###?## #??????????? | | #???# ##### #??????????? | | ##??# #??????????? | | #??# gg ##??###?????? | | #??## ##### # ##?# ##????? | | ##??## ##??# ## ## ##???? | | #???# ##??# ## #???? | | ????# #### #???? | | ????## ###### @ ##???? | | ?????## ##?### ##????? | | ????#### ##??############?????? | | ????## # """ #???????????????????? | | ????# "" #???????????????????? | | ????# """ #???????????????????? | | ##### #???????????????????? | | # ! ##### #???????????????????? | | # % # # #?###???????????????????? | | + # #???????????????????????? | | + # != ##???????????????????????? | | # # #???######???????????????? | | # # ###??# ##??????????????? | | ## #?? #??????????????? | | # #?# #??????????????? | | ## ## ## ##?????????????? | | ?#### ##### #?????????????? | | ????# #??# #?????????????? | | ??### #### #??????????????? | | ?## ## #?????????###????? | | ?# ##????????# #????? | | ?# ##?????#### #????? | | ## ##?????## #????? | | ############### #?????? | | #?????? | +----------------------------------------------------+ Best States ------------- Heat Dissipation 35 Energy Generation 10 Energy Capacity 125 Matter Stores 400 Matter Capacity 400 Sight Range 16 Terrain Scan Density 10 Evasion (%) 55 Item Schematics ----------------- None Robot Schematics ------------------ None Fabricated ------------ Nothing Repaired ---------- Nothing Alien Tech Used ----------------- None Achievements -------------- None Challenges ------------ None Game ------ Seed ColdMassGenerator Manual? 0 Play Time 00:21:00 Cumulative 3.3 hours Start 2025.06.24 @ 15:49:53 End 2025.06.24 @ 22:23:28 Sessions 3 Manual Loads 0 Difficulty Rogue Special Mode None Game No. 8 Rogue 8 Adventurer 0 Explorer 0 Win Type - Total 0 Types 0/0/0/0/0/0/0/0/0/0 Lore% 1 Gallery% 8 Achievement% 7 Wizard Run 0 Options --------- Layout 1 ASCII 0 Keyboard 1 Movement Vi Keybinds 0 Fullscreen 2 Font 32/SmallcapsGlow Map View 50x35 Zoom Use 0% Tactical HUD 1 Map Filters NONE Filters NONE Steam 1 RUN: 9f048926-28df-4154-b0de-4b206cd455d1